[Event "GER-ch Blitz 2019"]
[Site "Magdeburg"]
[Date "2019.05.25"]
[Round "19.1"]
[White "Gustafsson, Jan"]
[Black "Barzen, Pascal"]
[Result "1-0"]
[ECO "D37"]
[WhiteElo "2639"]
[BlackElo "2292"]
[Annotator "ChessBase"]
[PlyCount "92"]
[EventDate "2019.05.25"]
[EventType "tourn"]
[EventCountry "GER"]
[Tiebreak "Number of wins+Number of black wins"]
[SourceTitle "playchess.com"]
[Source "ChessBase"]
[SourceQuality "1"]
[TimeControl "180+2"]

1. Nf3 {[%emt 0:00:00]} Nf6 {[%emt 0:00:00]} 2. c4 {[%emt 0:00:01]} e6 {
[%emt 0:00:00]} 3. Nc3 {[%emt 0:00:01]} d5 {[%emt 0:00:03]} 4. d4 {[%emt 0:00:
01]} Be7 {[%emt 0:00:03]} 5. Bf4 {[%emt 0:00:02]} O-O {[%emt 0:00:02]} 6. e3 {
[%emt 0:00:01]} b6 {[%emt 0:00:06]} 7. Qc2 {[%emt 0:00:06]} Bb7 {[%emt 0:00:03]
} 8. Rd1 {[%emt 0:00:01]} Nbd7 {[%emt 0:00:02]} 9. cxd5 {[%emt 0:00:05]} exd5 {
[%emt 0:00:10]} 10. Bd3 {[%emt 0:00:07]} c5 {[%emt 0:00:08]} 11. O-O {[%emt 0:
00:05]} a6 {[%emt 0:00:15]} 12. dxc5 {[%emt 0:00:07]} Nxc5 {[%emt 0:00:06]} 13.
Bf5 {[%emt 0:00:08]} g6 {[%emt 0:00:13]} 14. Bh3 {[%emt 0:00:01]} Bc8 {[%emt 0:
00:07]} 15. Bxc8 {[%emt 0:00:08]} Rxc8 {[%emt 0:00:01]} 16. Qe2 {[%emt 0:00:06]
} b5 {[%emt 0:00:05]} 17. Be5 {[%emt 0:00:10]} Nce4 {[%emt 0:00:26]} 18. a4 {
[%emt 0:00:01]} Nxc3 {[%emt 0:00:06]} 19. Bxc3 {[%emt 0:00:02]} bxa4 {[%emt 0:
00:20]} 20. Qxa6 {[%emt 0:00:03]} Ne4 {[%emt 0:00:05]} 21. Be5 {[%emt 0:00:19]}
Qd7 {[%emt 0:00:17]} 22. Nd4 {[%emt 0:00:16]} Ra8 {[%emt 0:00:16]} 23. Qc6 {
[%emt 0:00:03]} Rfd8 {[%emt 0:00:11]} 24. Rd3 {[%emt 0:00:18]} Nc5 {[%emt 0:00:
03]} 25. Rc3 {[%emt 0:00:05]} Ne6 {[%emt 0:00:07]} 26. Ra1 {[%emt 0:00:17]}
Nxd4 {[%emt 0:00:21]} 27. Bxd4 {[%emt 0:00:02]} Qxc6 {[%emt 0:00:06]} 28. Rxc6
{[%emt 0:00:01]} Bf8 {[%emt 0:00:03]} 29. g4 {[%emt 0:00:10]} Bg7 {[%emt 0:00:
01]} 30. Bxg7 {[%emt 0:00:05]} Kxg7 {[%emt 0:00:01]} 31. Rd1 {[%emt 0:00:08]}
Rab8 {[%emt 0:00:03]} 32. Rc2 {[%emt 0:00:03]} Rb4 {[%emt 0:00:04]} 33. h3 {
[%emt 0:00:01]} Rdb8 {[%emt 0:00:04]} 34. Rxd5 {[%emt 0:00:08]} Rxb2 {[%emt 0:
00:01]} 35. Rxb2 {[%emt 0:00:01]} Rxb2 {[%emt 0:00:00]} 36. Ra5 {[%emt 0:00:01]
} Ra2 {[%emt 0:00:01]} 37. Kg2 {[%emt 0:00:01]} h6 {[%emt 0:00:01]} 38. Kg3 {
[%emt 0:00:03]} a3 39. h4 {[%emt 0:00:02]} Ra1 {[%emt 0:00:02]} 40. f3 {
[%emt 0:00:03]} a2 {[%emt 0:00:04]} 41. Kf4 {[%emt 0:00:01]} Rh1 {[%emt 0:00:
08]} 42. Rxa2 {[%emt 0:00:02]} Rxh4 {[%emt 0:00:01]} 43. Ra7 {[%emt 0:00:01]}
Rh1 {[%emt 0:00:00]} 44. e4 {[%emt 0:00:01]} Rb1 {[%emt 0:00:02]} 45. e5 {
[%emt 0:00:03]} Rb4+ {[%emt 0:00:01]} 46. Kg3 {[%emt 0:00:01]} Rc4 {[%emt 0:00:
08]} 1-0

[Event "GER-ch Blitz 2019"]
[Site "Magdeburg"]
[Date "2019.05.25"]
[Round "19.2"]
[White "Hebbinghaus, Holger"]
[Black "Heistermann, Till"]
[Result "1/2-1/2"]
[ECO "B00"]
[WhiteElo "2310"]
[BlackElo "2181"]
[Annotator "NA"]
[PlyCount "88"]
[EventDate "2019.05.25"]
[EventType "tourn"]
[EventCountry "GER"]
[Tiebreak "Number of wins+Number of black wins"]
[SourceTitle "playchess.com"]
[Source "ChessBase"]
[SourceQuality "1"]
[TimeControl "180+2"]

1. e4 {[%emt 0:00:00]} d6 {[%emt 0:00:00]} 2. d4 {[%emt 0:00:01]} e5 {[%emt 0:
00:00]} 3. dxe5 {[%emt 0:00:03]} dxe5 {[%emt 0:00:00]} 4. Qxd8+ Kxd8 {[%emt 0:
00:01]} 5. Bc4 {[%emt 0:00:05]} f6 {[%emt 0:00:02]} 6. Be3 {[%emt 0:00:05]} c6
{[%emt 0:00:02]} 7. a4 {[%emt 0:00:18]} Nd7 {[%emt 0:00:03]} 8. Nd2 {[%emt 0:
00:08]} Bc5 {[%emt 0:00:02]} 9. Bxc5 {[%emt 0:00:23]} Nxc5 {[%emt 0:00:01]} 10.
Ne2 {[%emt 0:00:04]} a5 {[%emt 0:00:01]} 11. f3 {[%emt 0:00:08]} Kc7 {[%emt 0:
00:02]} 12. Nb3 {[%emt 0:00:15]} Nxb3 {[%emt 0:00:19]} 13. Bxb3 {[%emt 0:00:01]
} Ne7 {[%emt 0:00:02]} 14. O-O-O {[%emt 0:00:16]} b6 {[%emt 0:00:08]} 15. Bc4 {
[%emt 0:00:04]} Bb7 {[%emt 0:00:06]} 16. Ng3 {[%emt 0:00:21]} g6 {[%emt 0:00:
03]} 17. Nf1 {[%emt 0:00:05]} Rad8 {[%emt 0:00:02]} 18. Ne3 {[%emt 0:00:00]} h5
{[%emt 0:00:05]} 19. h4 {[%emt 0:00:02]} Bc8 {[%emt 0:00:26]} 20. g3 {[%emt 0:
00:10]} Rxd1+ {[%emt 0:00:03]} 21. Rxd1 {[%emt 0:00:01]} Rd8 {[%emt 0:00:01]}
22. Rf1 {[%emt 0:00:07]} Rd6 {[%emt 0:00:35]} 23. c3 {[%emt 0:00:02]} Be6 {
[%emt 0:00:02]} 24. f4 {[%emt 0:00:07]} exf4 {[%emt 0:00:02]} 25. Rxf4 {
[%emt 0:00:08]} Bxc4 {[%emt 0:00:01]} 26. Nxc4 {[%emt 0:00:02]} Re6 {[%emt 0:
00:01]} 27. Kd2 {[%emt 0:00:05]} Nc8 {[%emt 0:00:01]} 28. Kd3 {[%emt 0:00:03]}
Nd6 {[%emt 0:00:01]} 29. Nd2 {[%emt 0:00:21]} Nf7 {[%emt 0:00:02]} 30. Nf3 {
[%emt 0:00:10]} Kd6 {[%emt 0:00:01]} 31. g4 {[%emt 0:00:06]} Ne5+ {[%emt 0:00:
05]} 32. Nxe5 {[%emt 0:00:04]} Kxe5 {[%emt 0:00:02]} 33. Ke3 {[%emt 0:00:03]}
hxg4 {[%emt 0:00:16]} 34. Rxg4 {[%emt 0:00:01]} f5 {[%emt 0:00:01]} 35. Rf4 {
[%emt 0:00:09]} Kf6 {[%emt 0:00:04]} 36. Kf3 {[%emt 0:00:04]} Rd6 {[%emt 0:00:
17]} 37. exf5 {[%emt 0:00:02]} gxf5 {[%emt 0:00:01]} 38. Ke3 {[%emt 0:00:02]}
Rd1 {[%emt 0:00:02]} 39. Rc4 {[%emt 0:00:04]} c5 {[%emt 0:00:00]} 40. b4 {
[%emt 0:00:02]} axb4 {[%emt 0:00:07]} 41. cxb4 {[%emt 0:00:01]} cxb4 {[%emt 0:
00:02]} 42. Rc6+ {[%emt 0:00:02]} Ke5 {[%emt 0:00:01]} 43. Rxb6 {[%emt 0:00:01]
} Rb1 {[%emt 0:00:03]} 44. Rb5+ {[%emt 0:00:02]} Kf6 {[%emt 0:00:01] Ke4 Ke5+}
1/2-1/2

[Event "GER-ch Blitz 2019"]
[Site "Magdeburg"]
[Date "2019.05.25"]
[Round "19.3"]
[White "Braeuning, Rudolf Wilhelm"]
[Black "Krause, Benedict"]
[Result "1/2-1/2"]
[ECO "B22"]
[WhiteElo "2285"]
[BlackElo "2434"]
[Annotator "NA"]
[PlyCount "75"]
[EventDate "2019.05.25"]
[EventType "tourn"]
[EventCountry "GER"]
[Tiebreak "Number of wins+Number of black wins"]
[SourceTitle "playchess.com"]
[Source "ChessBase"]
[SourceQuality "1"]
[TimeControl "180+2"]

1. e4 {[%emt 0:00:00]} c5 {[%emt 0:00:00]} 2. c3 {[%emt 0:00:00]} d5 {[%emt 0:
00:00]} 3. exd5 Qxd5 {[%emt 0:00:01]} 4. d4 {[%emt 0:00:03]} e6 {[%emt 0:00:01]
} 5. Nf3 {[%emt 0:00:01]} Nf6 {[%emt 0:00:01]} 6. Na3 {[%emt 0:00:01]} Nc6 {
[%emt 0:00:02]} 7. Be3 {[%emt 0:00:02]} cxd4 {[%emt 0:00:09]} 8. Nb5 {[%emt 0:
00:01]} Qd8 {[%emt 0:00:03]} 9. Nbxd4 {[%emt 0:00:02]} Nd5 {[%emt 0:00:02]} 10.
Nxc6 {[%emt 0:00:06]} bxc6 {[%emt 0:00:01]} 11. Bd4 {[%emt 0:00:01]} f6 {
[%emt 0:00:01]} 12. Bc4 {[%emt 0:00:13]} Bd6 {[%emt 0:00:10]} 13. O-O {[%emt 0:
00:09]} O-O {[%emt 0:00:02]} 14. Re1 {[%emt 0:00:36]} Kh8 {[%emt 0:00:23]} 15.
Qa4 {[%emt 0:00:26]} Qc7 {[%emt 0:00:07]} 16. Bf1 {[%emt 0:00:13]} e5 {[%emt 0:
00:02]} 17. Be3 {[%emt 0:00:03]} Nxe3 {[%emt 0:00:32]} 18. Rxe3 {[%emt 0:00:06]
} Bc5 {[%emt 0:00:03]} 19. Ree1 {[%emt 0:00:14]} Qb6 {[%emt 0:00:33]} 20. Qh4 {
[%emt 0:00:22]} Bf5 {[%emt 0:00:21]} 21. b4 {[%emt 0:00:05]} Bd6 {[%emt 0:00:
05]} 22. Nd2 {[%emt 0:00:06]} Qc7 {[%emt 0:00:16]} 23. Ne4 {[%emt 0:00:08]} Be7
{[%emt 0:00:05]} 24. Rad1 {[%emt 0:00:06]} a5 {[%emt 0:00:02]} 25. a3 {[%emt 0:
00:06]} axb4 {[%emt 0:00:01]} 26. axb4 {[%emt 0:00:01]} Bg6 {[%emt 0:00:04]}
27. Nc5 {[%emt 0:00:09]} Bxc5 {[%emt 0:00:05]} 28. bxc5 {[%emt 0:00:00]} Rad8 {
[%emt 0:00:01]} 29. h3 {[%emt 0:00:04]} Qe7 {[%emt 0:00:05]} 30. Qb4 {[%emt 0:
00:03]} Rb8 {[%emt 0:00:13]} 31. Qa5 {[%emt 0:00:06]} Rfd8 {[%emt 0:00:03]} 32.
g3 {[%emt 0:00:18]} Rxd1 {[%emt 0:00:07]} 33. Rxd1 {[%emt 0:00:00]} Be4 {
[%emt 0:00:07]} 34. Bg2 {[%emt 0:00:03]} Bxg2 {[%emt 0:00:01]} 35. Kxg2 {
[%emt 0:00:00]} h6 {[%emt 0:00:02]} 36. Rd6 {[%emt 0:00:01]} Rc8 {[%emt 0:00:
04]} 37. Qb6 {[%emt 0:00:02]} Qe8 {[%emt 0:00:02]} 38. Qb7 {[%emt 0:00:02]}
1/2-1/2

[Event "GER-ch Blitz 2019"]
[Site "Magdeburg"]
[Date "2019.05.25"]
[Round "19.4"]
[White "Schneider, Ilja"]
[Black "Voege, Tobias"]
[Result "1-0"]
[ECO "D07"]
[WhiteElo "2494"]
[BlackElo "2294"]
[Annotator "ChessBase"]
[PlyCount "89"]
[EventDate "2019.05.25"]
[EventType "tourn"]
[EventCountry "GER"]
[Tiebreak "Number of wins+Number of black wins"]
[SourceTitle "playchess.com"]
[Source "ChessBase"]
[SourceQuality "1"]
[TimeControl "180+2"]

1. d4 {[%emt 0:00:00]} d5 {[%emt 0:00:00]} 2. c4 {[%emt 0:00:00]} Nc6 {[%emt 0:
00:01]} 3. Nf3 {[%emt 0:00:01]} Bg4 {[%emt 0:00:01]} 4. Nc3 {[%emt 0:00:01]} e6
{[%emt 0:00:01]} 5. cxd5 {[%emt 0:00:01]} exd5 {[%emt 0:00:01]} 6. Qb3 {
[%emt 0:00:01]} Bb4 {[%emt 0:00:01]} 7. Ne5 {[%emt 0:00:02]} Nxd4 {[%emt 0:00:
13]} 8. Qd1 {[%emt 0:00:01]} Nc6 {[%emt 0:00:17]} 9. Nxg4 {[%emt 0:00:01]} h5 {
[%emt 0:00:01]} 10. Ne3 {[%emt 0:00:07]} d4 {[%emt 0:00:02]} 11. Bd2 {[%emt 0:
00:14]} dxc3 {[%emt 0:00:31]} 12. Bxc3 {[%emt 0:00:08]} Bxc3+ {[%emt 0:00:09]}
13. bxc3 {[%emt 0:00:00]} Nge7 {[%emt 0:00:21]} 14. g3 {[%emt 0:00:02]} h4 {
[%emt 0:00:18]} 15. Bg2 {[%emt 0:00:01]} hxg3 {[%emt 0:00:06]} 16. hxg3 {
[%emt 0:00:04]} Rxh1+ {[%emt 0:00:01]} 17. Bxh1 {[%emt 0:00:01]} Qxd1+ {
[%emt 0:00:06]} 18. Kxd1 O-O-O+ {[%emt 0:00:12]} 19. Kc2 {[%emt 0:00:13]} Rh8 {
[%emt 0:00:11]} 20. Be4 {[%emt 0:00:05]} g6 {[%emt 0:00:13]} 21. g4 {[%emt 0:
00:05]} Rh2 {[%emt 0:00:03]} 22. Rf1 {[%emt 0:00:06]} Ne5 {[%emt 0:00:07]} 23.
g5 {[%emt 0:00:18]} Rh4 {[%emt 0:00:18]} 24. f4 {[%emt 0:00:10]} Ng4 {[%emt 0:
00:05]} 25. Nxg4 {[%emt 0:00:51]} Rxg4 {[%emt 0:00:01]} 26. Kd3 {[%emt 0:00:10]
} c6 {[%emt 0:00:10]} 27. e3 {[%emt 0:00:12]} Kd7 {[%emt 0:00:06]} 28. Rh1 {
[%emt 0:00:01]} Nc8 {[%emt 0:00:02]} 29. Bf3 {[%emt 0:00:03]} Rg3 {[%emt 0:00:
01]} 30. Ke2 {[%emt 0:00:00]} Nd6 {[%emt 0:00:08]} 31. Kf2 {[%emt 0:00:01]}
Rxf3+ {[%emt 0:00:02]} 32. Kxf3 {[%emt 0:00:02]} Nb5 {[%emt 0:00:00]} 33. c4 {
[%emt 0:00:03]} Nd6 {[%emt 0:00:05]} 34. c5 {[%emt 0:00:02]} Nb5 {[%emt 0:00:
01]} 35. Rh7 {[%emt 0:00:02]} Ke6 {[%emt 0:00:01]} 36. Rh8 {[%emt 0:00:03]} Nc3
{[%emt 0:00:01]} 37. Re8+ {[%emt 0:00:05]} Kd7 {[%emt 0:00:03]} 38. Rb8 {
[%emt 0:00:04]} Nxa2 {[%emt 0:00:02]} 39. Rxb7+ {[%emt 0:00:01]} Ke6 {[%emt 0:
00:00]} 40. Rxa7 {[%emt 0:00:01]} Nb4 {[%emt 0:00:02]} 41. Ke4 {[%emt 0:00:03]}
Nd5 {[%emt 0:00:02]} 42. Ra6 {[%emt 0:00:04]} Kd7 {[%emt 0:00:02]} 43. Kd4 {
[%emt 0:00:07]} Nc7 {[%emt 0:00:02]} 44. Ra7 {[%emt 0:00:01]} Kd8 {[%emt 0:00:
01]} 45. Rxc7 {[%emt 0:00:02]} 1-0

[Event "GER-ch Blitz 2019"]
[Site "Magdeburg"]
[Date "2019.05.25"]
[Round "19.5"]
[White "Feuerstack, Aljoscha"]
[Black "Carow, Johannes"]
[Result "1-0"]
[ECO "B10"]
[WhiteElo "2441"]
[BlackElo "2445"]
[Annotator "NA"]
[PlyCount "35"]
[EventDate "2019.05.25"]
[EventType "tourn"]
[EventCountry "GER"]
[Tiebreak "Number of wins+Number of black wins"]
[SourceTitle "playchess.com"]
[Source "ChessBase"]
[SourceQuality "1"]
[TimeControl "180+2"]

1. e4 {[%emt 0:00:00]} c6 {[%emt 0:00:00]} 2. c4 {[%emt 0:00:01]} d5 {[%emt 0:
00:00]} 3. cxd5 {[%emt 0:00:01]} cxd5 {[%emt 0:00:01]} 4. exd5 {[%emt 0:00:01]}
Nf6 {[%emt 0:00:02]} 5. Nc3 {[%emt 0:00:01]} Nxd5 {[%emt 0:00:07]} 6. Nf3 {
[%emt 0:00:01]} Nc6 {[%emt 0:00:07]} 7. Bb5 {[%emt 0:00:02]} e6 {[%emt 0:00:19]
} 8. O-O {[%emt 0:00:03]} Be7 {[%emt 0:00:06]} 9. d4 {[%emt 0:00:01]} O-O {
[%emt 0:00:03]} 10. Re1 {[%emt 0:00:02]} Nxc3 {[%emt 0:00:10]} 11. bxc3 {
[%emt 0:00:01]} Na5 {[%emt 0:00:00]} 12. Ne5 {[%emt 0:00:10]} b6 {[%emt 0:00:
09]} 13. Qg4 {[%emt 0:00:20]} a6 {[%emt 0:00:37]} 14. Bd3 {[%emt 0:00:21]} Bf6
{[%emt 0:00:08]} 15. Qe4 {[%emt 0:00:06]} g6 {[%emt 0:00:12]} 16. Qxa8 {
[%emt 0:00:02]} Qc7 {[%emt 0:00:04]} 17. Qf3 {[%emt 0:00:03]} Qxc3 {[%emt 0:00:
09]} 18. Bh6 {[%emt 0:00:17]} 1-0

[Event "GER-ch Blitz 2019"]
[Site "Magdeburg"]
[Date "2019.05.25"]
[Round "19.7"]
[White "Koch, Thomas"]
[Black "Stern, Rene"]
[Result "1/2-1/2"]
[ECO "D52"]
[WhiteElo "2474"]
[BlackElo "2538"]
[Annotator "ChessBase"]
[PlyCount "31"]
[EventDate "2019.05.25"]
[EventType "tourn"]
[EventCountry "GER"]
[Tiebreak "Number of wins+Number of black wins"]
[SourceTitle "playchess.com"]
[Source "ChessBase"]
[SourceQuality "1"]
[TimeControl "180+2"]

1. d4 {[%emt 0:00:00]} d5 {[%emt 0:00:00]} 2. c4 {[%emt 0:00:00]} e6 {[%emt 0:
00:00]} 3. Nc3 {[%emt 0:00:00]} Nf6 {[%emt 0:00:00]} 4. Bg5 {[%emt 0:00:01]}
Nbd7 {[%emt 0:00:01]} 5. e3 {[%emt 0:00:01]} c6 {[%emt 0:00:01]} 6. Nf3 {
[%emt 0:00:02]} Qa5 {[%emt 0:00:01]} 7. Nd2 {[%emt 0:00:04]} dxc4 {[%emt 0:00:
01]} 8. Bxf6 {[%emt 0:00:02]} Nxf6 {[%emt 0:00:01]} 9. Nxc4 {[%emt 0:00:03]}
Qc7 {[%emt 0:00:01]} 10. Be2 {[%emt 0:00:02]} Be7 {[%emt 0:00:01]} 11. Rc1 {
[%emt 0:00:03]} O-O {[%emt 0:00:01]} 12. O-O {[%emt 0:00:01]} Rd8 {[%emt 0:00:
01]} 13. Qc2 {[%emt 0:00:06]} Bd7 {[%emt 0:00:01]} 14. Bf3 {[%emt 0:00:02]} Be8
{[%emt 0:00:01]} 15. Rfd1 {[%emt 0:00:04]} Rac8 {[%emt 0:00:01]} 16. Ne4 {
[%emt 0:00:08]} 1/2-1/2

[Event "GER-ch Blitz 2019"]
[Site "Magdeburg"]
[Date "2019.05.25"]
[Round "19.8"]
[White "Hirneise, Jens"]
[Black "Baskin, Robert"]
[Result "1/2-1/2"]
[ECO "B90"]
[WhiteElo "2375"]
[BlackElo "2398"]
[Annotator "NA"]
[PlyCount "157"]
[EventDate "2019.05.25"]
[EventType "tourn"]
[EventCountry "GER"]
[Tiebreak "Number of wins+Number of black wins"]
[SourceTitle "playchess.com"]
[Source "ChessBase"]
[SourceQuality "1"]
[TimeControl "180+2"]

1. e4 {[%emt 0:00:00]} c5 {[%emt 0:00:00]} 2. Nf3 {[%emt 0:00:01]} d6 {[%emt 0:
00:00]} 3. d4 {[%emt 0:00:00]} cxd4 4. Nxd4 {[%emt 0:00:01]} Nf6 {[%emt 0:00:
01]} 5. Nc3 {[%emt 0:00:01]} a6 {[%emt 0:00:01]} 6. Bd3 {[%emt 0:00:01]} Nc6 {
[%emt 0:00:01]} 7. Nxc6 bxc6 {[%emt 0:00:01]} 8. O-O {[%emt 0:00:04]} e5 {
[%emt 0:00:03]} 9. b3 {[%emt 0:00:11]} Be7 {[%emt 0:00:01]} 10. Bb2 {[%emt 0:
00:01]} O-O {[%emt 0:00:02]} 11. Na4 {[%emt 0:00:01]} Be6 {[%emt 0:00:05]} 12.
c4 {[%emt 0:00:04]} Nd7 {[%emt 0:00:06]} 13. Qe2 {[%emt 0:00:09]} Bg5 {[%emt 0:
00:09]} 14. Rad1 {[%emt 0:00:04]} Qe7 {[%emt 0:00:01]} 15. Ba3 {[%emt 0:00:18]}
Rad8 {[%emt 0:00:14]} 16. c5 {[%emt 0:00:34]} Nxc5 {[%emt 0:00:18]} 17. Bxc5 {
[%emt 0:00:08]} dxc5 {[%emt 0:00:04]} 18. Bxa6 {[%emt 0:00:01]} Rd4 {[%emt 0:
00:01]} 19. Rd3 {[%emt 0:00:28]} Rfd8 {[%emt 0:00:03]} 20. Rc3 {[%emt 0:00:07]}
Rd2 {[%emt 0:00:06]} 21. Qf3 {[%emt 0:00:06]} Rxa2 {[%emt 0:00:02]} 22. Bc4 {
[%emt 0:00:45]} Bd2 {[%emt 0:00:18]} 23. Bxe6 {[%emt 0:00:17]} Qxe6 {[%emt 0:
00:18]} 24. Rd3 {[%emt 0:00:05]} Rxd3 {[%emt 0:00:43]} 25. Qxd3 {[%emt 0:00:01]
} Qe7 {[%emt 0:00:01]} 26. Qe2 {[%emt 0:00:10]} Qd6 {[%emt 0:00:13]} 27. Rd1 {
[%emt 0:00:06]} g6 {[%emt 0:00:11]} 28. g3 {[%emt 0:00:07]} Qd4 {[%emt 0:00:04]
} 29. Nxc5 {[%emt 0:00:04]} Qxc5 {[%emt 0:00:05]} 30. Rxd2 {[%emt 0:00:00]}
Qc1+ {[%emt 0:00:20]} 31. Rd1 {[%emt 0:00:03]} Rxe2 {[%emt 0:00:15]} 32. Rxc1 {
[%emt 0:00:01]} Rxe4 {[%emt 0:00:01]} 33. Rxc6 {[%emt 0:00:01]} Re1+ {[%emt 0:
00:00]} 34. Kg2 {[%emt 0:00:01]} Rb1 {[%emt 0:00:01]} 35. Rc5 {[%emt 0:00:02]}
e4 {[%emt 0:00:03]} 36. Rb5 {[%emt 0:00:05]} Kg7 {[%emt 0:00:01]} 37. b4 {
[%emt 0:00:01]} h5 {[%emt 0:00:07]} 38. h4 {[%emt 0:00:03]} Kf6 {[%emt 0:00:02]
} 39. Rb6+ {[%emt 0:00:02]} Ke5 {[%emt 0:00:02]} 40. Rb7 {[%emt 0:00:02]} f5 {
[%emt 0:00:01]} 41. b5 {[%emt 0:00:01]} Rb2 {[%emt 0:00:03]} 42. Kg1 {[%emt 0:
00:01]} e3 {[%emt 0:00:06]} 43. fxe3 {[%emt 0:00:01]} Ke4 {[%emt 0:00:00]} 44.
Kf1 {[%emt 0:00:05]} Kf3 {[%emt 0:00:01]} 45. Ke1 {[%emt 0:00:02]} Kxg3 {
[%emt 0:00:01]} 46. Rg7 {[%emt 0:00:01]} Kxh4 {[%emt 0:00:02]} 47. Rxg6 {
[%emt 0:00:01]} Rxb5 {[%emt 0:00:01]} 48. Kf2 {[%emt 0:00:00]} Rb4 {[%emt 0:00:
01]} 49. Kf3 {[%emt 0:00:01]} Rg4 {[%emt 0:00:01]} 50. Ra6 {[%emt 0:00:03]} Kg5
{[%emt 0:00:03]} 51. Ra8 {[%emt 0:00:01]} Kf6 {[%emt 0:00:05]} 52. Rh8 {
[%emt 0:00:05]} Kg6 {[%emt 0:00:02]} 53. Rg8+ {[%emt 0:00:01]} Kh7 {[%emt 0:00:
04]} 54. Rf8 {[%emt 0:00:02]} Kg6 {[%emt 0:00:02]} 55. Rg8+ {[%emt 0:00:01]}
Kf6 {[%emt 0:00:01]} 56. Rh8 {[%emt 0:00:01]} Kg5 {[%emt 0:00:00]} 57. Rg8+ {
[%emt 0:00:02]} Kh4 {[%emt 0:00:01]} 58. Rf8 {[%emt 0:00:01]} Rg3+ {[%emt 0:00:
03]} 59. Kf2 {[%emt 0:00:02]} Rg5 {[%emt 0:00:02]} 60. Kf3 {[%emt 0:00:02]} Kh3
{[%emt 0:00:03]} 61. Kf4 {[%emt 0:00:01]} Rg1 {[%emt 0:00:01]} 62. Rh8 {
[%emt 0:00:05]} h4 {[%emt 0:00:01]} 63. Kxf5 {[%emt 0:00:01]} Kg3 {[%emt 0:00:
02]} 64. Rg8+ {[%emt 0:00:03]} Kh2 {[%emt 0:00:04]} 65. Rh8 {[%emt 0:00:03]} h3
{[%emt 0:00:01]} 66. e4 {[%emt 0:00:01]} Kg2 {[%emt 0:00:03]} 67. Rg8+ {
[%emt 0:00:02]} Kf2 {[%emt 0:00:01]} 68. Rh8 {[%emt 0:00:01]} Kg2 {[%emt 0:00:
03]} 69. Rg8+ {[%emt 0:00:01]} Kh1 {[%emt 0:00:01]} 70. Rh8 {[%emt 0:00:02]} h2
{[%emt 0:00:00]} 71. e5 {[%emt 0:00:01]} Kg2 {[%emt 0:00:01]} 72. e6 {[%emt 0:
00:03]} Rf1+ {[%emt 0:00:01]} 73. Ke5 {[%emt 0:00:03]} Rf8 {[%emt 0:00:02]} 74.
Rxh2+ {[%emt 0:00:02]} Kxh2 {[%emt 0:00:01]} 75. e7 {[%emt 0:00:01]} Rh8 {
[%emt 0:00:01]} 76. Kd6 {[%emt 0:00:01]} Kg3 {[%emt 0:00:01]} 77. Kd7 {[%emt 0:
00:00]} Rh7 {[%emt 0:00:00]} 78. Kd8 {[%emt 0:00:01]} Rxe7 {[%emt 0:00:01]} 79.
Kxe7 {[%emt 0:00:01]} 1/2-1/2

[Event "GER-ch Blitz 2019"]
[Site "Magdeburg"]
[Date "2019.05.25"]
[Round "19.9"]
[White "Buhmann, Rainer"]
[Black "Frischmann, Rick"]
[Result "1-0"]
[ECO "D07"]
[WhiteElo "2573"]
[BlackElo "2320"]
[Annotator "ChessBase"]
[PlyCount "75"]
[EventDate "2019.05.25"]
[EventType "tourn"]
[EventCountry "GER"]
[Tiebreak "Number of wins+Number of black wins"]
[SourceTitle "playchess.com"]
[Source "ChessBase"]
[SourceQuality "1"]
[TimeControl "180+2"]

1. d4 {[%emt 0:00:00]} d5 {[%emt 0:00:00]} 2. c4 {[%emt 0:00:00]} Nc6 {[%emt 0:
00:00]} 3. Nf3 {[%emt 0:00:08]} Bg4 {[%emt 0:00:00]} 4. e3 {[%emt 0:00:06]} e5
{[%emt 0:00:02]} 5. dxe5 {[%emt 0:00:19]} dxc4 {[%emt 0:00:01]} 6. Qa4 {
[%emt 0:00:24]} Bxf3 {[%emt 0:00:02]} 7. gxf3 {[%emt 0:00:02]} Qd5 {[%emt 0:00:
02]} 8. Qxc4 {[%emt 0:01:12]} Qxf3 {[%emt 0:00:22]} 9. Rg1 {[%emt 0:00:05]}
O-O-O {[%emt 0:00:05]} 10. Be2 {[%emt 0:00:07]} Nxe5 {[%emt 0:00:25]} 11. Bxf3
{[%emt 0:00:11]} Nxc4 {[%emt 0:00:01]} 12. Ke2 {[%emt 0:00:06]} Nf6 {[%emt 0:
00:07]} 13. b3 {[%emt 0:00:01]} Ne5 {[%emt 0:00:16]} 14. Bg2 {[%emt 0:00:01]}
Nd3 {[%emt 0:00:05]} 15. Nc3 {[%emt 0:00:05]} Nxc1+ 16. Raxc1 {[%emt 0:00:01]}
c6 {[%emt 0:00:10]} 17. Nb5 {[%emt 0:00:08]} Kb8 {[%emt 0:00:06]} 18. Nd4 {
[%emt 0:00:01]} g6 {[%emt 0:00:05]} 19. Bxc6 {[%emt 0:00:02]} Ba3 {[%emt 0:00:
06]} 20. Rc4 {[%emt 0:00:04]} bxc6 {[%emt 0:00:05]} 21. Nxc6+ Kb7 22. Nxd8+ {
[%emt 0:00:03]} Rxd8 {[%emt 0:00:01]} 23. Rd1 {[%emt 0:00:02]} Re8 {[%emt 0:00:
22]} 24. b4 {[%emt 0:00:08]} Bb2 {[%emt 0:00:02]} 25. f4 {[%emt 0:00:12]} Ng4 {
[%emt 0:00:10]} 26. e4 {[%emt 0:00:05]} f5 {[%emt 0:00:10]} 27. e5 {[%emt 0:00:
04]} Bxe5 {[%emt 0:00:11]} 28. fxe5 {[%emt 0:00:04]} Rxe5+ {[%emt 0:00:07]} 29.
Kf3 {[%emt 0:00:06]} g5 {[%emt 0:00:12]} 30. Rd3 {[%emt 0:00:05]} Nxh2+ {
[%emt 0:00:04]} 31. Kg3 {[%emt 0:00:00]} Nf1+ {[%emt 0:00:08]} 32. Kf2 {
[%emt 0:00:01]} Nh2 {[%emt 0:00:01]} 33. a4 {[%emt 0:00:03]} Ng4+ {[%emt 0:00:
02]} 34. Kf3 {[%emt 0:00:01]} Nf6 {[%emt 0:00:09]} 35. Rc5 {[%emt 0:00:03]} Re1
{[%emt 0:00:04]} 36. Kf2 {[%emt 0:00:02]} Ne4+ {[%emt 0:00:07]} 37. Kxe1 Nxc5
38. bxc5 {[%emt 0:00:02]} 1-0

[Event "GER-ch Blitz 2019"]
[Site "Magdeburg"]
[Date "2019.05.25"]
[Round "19.10"]
[White "Zuyev, Igor"]
[Black "Braeuer, Franz"]
[Result "1/2-1/2"]
[ECO "B23"]
[WhiteElo "2447"]
[BlackElo "2445"]
[Annotator "NA"]
[PlyCount "37"]
[EventDate "2019.05.25"]
[EventType "tourn"]
[EventCountry "GER"]
[Tiebreak "Number of wins+Number of black wins"]
[SourceTitle "playchess.com"]
[Source "ChessBase"]
[SourceQuality "1"]
[TimeControl "180+2"]

1. e4 {[%emt 0:00:00]} c5 {[%emt 0:00:00]} 2. Nc3 {[%emt 0:00:00]} e6 {[%emt 0:
00:00]} 3. f4 Nc6 4. Nf3 {[%emt 0:00:04]} Nge7 {[%emt 0:00:01]} 5. Bb5 {
[%emt 0:00:10]} a6 {[%emt 0:00:01]} 6. Bxc6 {[%emt 0:00:05]} Nxc6 {[%emt 0:00:
01]} 7. O-O {[%emt 0:00:04]} d6 {[%emt 0:00:08]} 8. d3 {[%emt 0:00:06]} Be7 {
[%emt 0:00:03]} 9. Be3 {[%emt 0:00:05]} O-O {[%emt 0:00:05]} 10. d4 {[%emt 0:
00:04]} cxd4 {[%emt 0:00:04]} 11. Nxd4 {[%emt 0:00:06]} Bd7 {[%emt 0:00:07]}
12. Nf3 {[%emt 0:00:07]} Qc7 {[%emt 0:00:10]} 13. Qd3 {[%emt 0:00:05]} Rac8 {
[%emt 0:00:16]} 14. a3 {[%emt 0:00:05]} Na5 {[%emt 0:00:06]} 15. Bd4 {[%emt 0:
00:08]} Nc6 {[%emt 0:00:10]} 16. Be3 {[%emt 0:00:06]} Na5 {[%emt 0:00:01]} 17.
Bd4 {[%emt 0:00:10]} Nc6 {[%emt 0:00:05]} 18. Bf2 {[%emt 0:00:07]} Na5 {
[%emt 0:00:19]} 19. Bd4 {[%emt 0:00:07]} 1/2-1/2